[Event "3rd FIDE WCCC Rapid G12 2019"]
[Site "Minsk"]
[Date "2019.08.17"]
[Round "8.5"]
[White "Kulkova, Dina"]
[Black "Lomakina, Anzhelika"]
[Result "0-1"]
[ECO "A20"]
[WhiteElo "1476"]
[BlackElo "1732"]
[Annotator "NA"]
[PlyCount "84"]
[EventDate "2019.08.16"]
[EventType "swiss"]
[EventCountry "BLR"]
[SourceTitle "playchess.com"]
[Source "ChessBase"]
[SourceQuality "1"]
[TimeControl "600+5"]

1. c4 {[%emt 0:00:00]} e5 {[%emt 0:00:00]} 2. g3 {[%emt 0:00:00]} Nf6 {[%emt 0:00:00]} 3. Bg2 {[%emt 0:00:00]} d5 {[%emt 0:00:00]} 4. cxd5 {[%emt 0:00:03]} Nxd5 {[%emt 0:00:00]} 5. Nc3 {[%emt 0:00:01]} Nb6 {[%emt 0:00:00]} 6. Nf3 {[%emt 0:00:18]} Nc6 {[%emt 0:00:02]} 7. d3 {[%emt 0:00:02]} Be7 {[%emt 0:00:02]} 8. O-O {[%emt 0:00:02]} O-O {[%emt 0:00:03]} 9. a3 {[%emt 0:00:07]} Re8 {[%emt 0:00:01]} 10. Qc2 {[%emt 0:00:02]} Bg4 {[%emt 0:00:09]} 11. h3 {[%emt 0:00:03]} Bxf3 {[%emt 0:00:10]} 12. exf3 {[%emt 0:00:23]} Nd4 {[%emt 0:00:05]} 13. Qd1 {[%emt 0:00:13]} Bd6 {[%emt 0:02:32]} 14. Ne4 {[%emt 0:00:45]} Nd5 {[%emt 0:00:24]} 15. Nxd6 {[%emt 0:01:13]} Qxd6 {[%emt 0:00:12]} 16. Re1 {[%emt 0:00:58]} Rad8 {[%emt 0:00:58]} 17. Be3 {[%emt 0:00:50]} Nxe3 {[%emt 0:01:02]} 18. fxe3 {[%emt 0:01:17]} Nc6 {[%emt 0:00:31]} 19. Qb3 {[%emt 0:00:43]} b6 {[%emt 0:01:33]} 20. Rad1 {[%emt 0:00:12]} e4 {[%emt 0:00:30]} 21. fxe4 {[%emt 0:02:11]} Qxg3 {[%emt 0:00:13]} 22. d4 {[%emt 0:00:35]} Nxd4 {[%emt 0:01:15]} 23. Rxd4 {[%emt 0:01:13]} Qxe1+ {[%emt 0:00:57]} 24. Kh2 {[%emt 0:00:05]} Rxd4 {[%emt 0:00:04]} 25. exd4 {[%emt 0:00:02]} Qd2 {[%emt 0:00:11]} 26. Qb5 {[%emt 0:00:41]} Rxe4 {[%emt 0:00:44]} 27. Qf5 {[%emt 0:00:08]} Qf4+ {[%emt 0:00:02]} 28. Qxf4 {[%emt 0:00:06]} Rxf4 {[%emt 0:00:00]} 29. Kg3 {[%emt 0:00:01]} Rxd4 {[%emt 0:00:01]} 30. Kf3 {[%emt 0:00:10]} g6 {[%emt 0:00:01]} 31. Ke3 {[%emt 0:00:01]} Rd6 {[%emt 0:00:02]} 32. b4 {[%emt 0:00:02]} c5 {[%emt 0:00:04]} 33. bxc5 {[%emt 0:00:03]} bxc5 {[%emt 0:00:01]} 34. Bf1 {[%emt 0:00:02]} Kg7 {[%emt 0:00:02]} 35. Bc4 {[%emt 0:00:02]} f5 {[%emt 0:00:01]} 36. Bb3 {[%emt 0:00:02]} Kf6 {[%emt 0:00:01]} 37. a4 {[%emt 0:00:08]} Ke5 {[%emt 0:00:02]} 38. Ba2 {[%emt 0:00:04]} f4+ {[%emt 0:00:02]} 39. Kf3 {[%emt 0:00:02]} Rd3+ {[%emt 0:00:05]} 40. Kg4 {[%emt 0:00:01]} Rd4 {[%emt 0:00:13]} 41. Bb3 {[%emt 0:00:06]} Ke4 {[%emt 0:00:01]} 42. Bc2+ {[%emt 0:00:03]} Ke3 {[%emt 0:00:02]} 0-1

[Event "3rd FIDE WCCC Rapid G12 2019"]
[Site "Minsk"]
[Date "2019.08.17"]
[Round "8.6"]
[White "Babic, Milana"]
[Black "Dubovik, Maria"]
[Result "1-0"]
[ECO "A05"]
[WhiteElo "1689"]
[BlackElo "1504"]
[Annotator "NA"]
[PlyCount "139"]
[EventDate "2019.08.16"]
[EventType "swiss"]
[EventCountry "BLR"]
[SourceTitle "playchess.com"]
[Source "ChessBase"]
[SourceQuality "1"]
[TimeControl "600+5"]

1. Nf3 {[%emt 0:00:00]} Nf6 {[%emt 0:00:00]} 2. g3 {[%emt 0:00:00]} e6 {[%emt 0:00:00]} 3. Bg2 {[%emt 0:00:00]} d5 {[%emt 0:00:00]} 4. d4 {[%emt 0:00:00]} c5 {[%emt 0:00:01]} 5. c4 {[%emt 0:00:07]} Nc6 {[%emt 0:00:07]} 6. cxd5 {[%emt 0:00:15]} Nxd5 {[%emt 0:00:20]} 7. O-O {[%emt 0:00:12]} Be7 {[%emt 0:00:09]} 8. b3 {[%emt 0:00:18]} cxd4 {[%emt 0:00:10]} 9. Nxd4 {[%emt 0:00:19]} Nxd4 {[%emt 0:00:03]} 10. Qxd4 {[%emt 0:00:08]} Bf6 {[%emt 0:00:01]} 11. Qa4+ {[%emt 0:00:07]} Bd7 {[%emt 0:00:02]} 12. Qg4 {[%emt 0:00:15]} Bxa1 {[%emt 0:00:05]} 13. Bg5 {[%emt 0:00:21]} Bf6 {[%emt 0:00:05]} 14. Bd2 {[%emt 0:00:24]} O-O {[%emt 0:00:06]} 15. e4 {[%emt 0:00:18]} Ne7 {[%emt 0:00:12]} 16. f4 {[%emt 0:00:50]} Bd4+ {[%emt 0:00:15]} 17. Kh1 {[%emt 0:00:02]} Ng6 {[%emt 0:00:03]} 18. f5 {[%emt 0:00:21]} Ne5 {[%emt 0:00:09]} 19. Qh5 {[%emt 0:00:16]} exf5 {[%emt 0:00:24]} 20. exf5 {[%emt 0:00:13]} Bc6 {[%emt 0:00:13]} 21. f6 {[%emt 0:00:59]} Bxg2+ {[%emt 0:00:03]} 22. Kxg2 {[%emt 0:00:01]} Qd5+ {[%emt 0:00:15]} 23. Kh3 {[%emt 0:00:02]} Qe6+ {[%emt 0:00:13]} 24. g4 {[%emt 0:00:21]} Nd3 {[%emt 0:00:19]} 25. Bc3 {[%emt 0:03:01]} Nf2+ {[%emt 0:01:00]} 26. Kg2 {[%emt 0:01:33]} Qe4+ {[%emt 0:00:13]} 27. Kg3 {[%emt 0:00:10]} Bxc3 {[%emt 0:00:51]} 28. Nxc3 {[%emt 0:00:07]} Qe3+ {[%emt 0:00:32]} 29. Kg2 {[%emt 0:00:02]} Qxc3 {[%emt 0:00:03]} 30. Rxf2 {[%emt 0:00:02]} Qc6+ {[%emt 0:00:29]} 31. Kh3 {[%emt 0:00:29]} Rad8 {[%emt 0:00:22]} 32. Qg5 {[%emt 0:00:26]} Qxf6 {[%emt 0:05:00]} 33. Rxf6 {[%emt 0:00:02]} Rd3+ {[%emt 0:00:01]} 34. Kh4 Rdd8 35. Rf3 {[%emt 0:00:16]} h6 {[%emt 0:00:21]} 36. Qb5 {[%emt 0:00:03]} b6 {[%emt 0:00:08]} 37. Qa6 {[%emt 0:00:00]} Rd7 {[%emt 0:00:06]} 38. a4 Kh7 {[%emt 0:00:04]} 39. Kg3 {[%emt 0:00:09]} Rfd8 {[%emt 0:00:03]} 40. Qc4 {[%emt 0:00:03]} Kg8 {[%emt 0:00:03]} 41. b4 {[%emt 0:00:08]} Re8 {[%emt 0:00:22]} 42. a5 {[%emt 0:00:04]} bxa5 {[%emt 0:00:02]} 43. bxa5 {[%emt 0:00:01]} Rde7 {[%emt 0:00:02]} 44. a6 {[%emt 0:00:06]} Rd7 {[%emt 0:00:04]} 45. Qc6 {[%emt 0:00:02]} Red8 {[%emt 0:00:01]} 46. Qc4 {[%emt 0:00:04]} Re8 {[%emt 0:00:04]} 47. Rb3 {[%emt 0:00:05]} Rde7 {[%emt 0:00:02]} 48. Rb7 {[%emt 0:00:13]} Re3+ {[%emt 0:00:02]} 49. Kf2 {[%emt 0:00:02]} R3e7 {[%emt 0:00:05]} 50. Rxe7 {[%emt 0:00:03]} Rxe7 {[%emt 0:00:02]} 51. Qc8+ {[%emt 0:00:01]} Kh7 {[%emt 0:00:01]} 52. Qc5 {[%emt 0:00:02]} Re2+ {[%emt 0:00:15]} 53. Kxe2 {[%emt 0:00:02]} Kg8 {[%emt 0:00:01]} 54. Qxa7 {[%emt 0:00:02]} Kf8 {[%emt 0:00:01]} 55. Qc5+ {[%emt 0:00:01]} Kg8 {[%emt 0:00:01]} 56. a7 {[%emt 0:00:01]} f5 {[%emt 0:00:01]} 57. gxf5 {[%emt 0:00:03]} g6 {[%emt 0:00:01]} 58. Qd5+ {[%emt 0:00:01]} Kg7 {[%emt 0:00:01]} 59. Qd7+ {[%emt 0:00:03]} Kf6 {[%emt 0:00:02]} 60. Qe6+ {[%emt 0:00:01]} Kg5 {[%emt 0:00:01]} 61. Qxg6+ {[%emt 0:00:01]} Kf4 {[%emt 0:00:01]} 62. a8=R {[%emt 0:00:05]} Ke4 {[%emt 0:00:04]} 63. Ra4+ {[%emt 0:00:01]} Kd5 {[%emt 0:00:01]} 64. Qe6+ {[%emt 0:00:01]} Kc5 {[%emt 0:00:04]} 65. Qe5+ {[%emt 0:00:01]} Kb6 {[%emt 0:00:01]} 66. Ra5 {[%emt 0:00:02]} Kc6 {[%emt 0:00:01]} 67. Qd5+ Kb6 {[%emt 0:00:01]} 68. Qc5+ {[%emt 0:00:02]} Kb7 {[%emt 0:00:01]} 69. Rb5+ {[%emt 0:00:01]} Ka6 {[%emt 0:00:01]} 70. Qb6# {[%emt 0:00:01]} 1-0

[Event "3rd FIDE WCCC Rapid G12 2019"]
[Site "Minsk"]
[Date "2019.08.17"]
[Round "9.1"]
[White "Shubenkova, Veronika"]
[Black "Vlasova, Olesia"]
[Result "1-0"]
[ECO "A56"]
[WhiteElo "1740"]
[BlackElo "1799"]
[Annotator "NA"]
[PlyCount "53"]
[EventDate "2019.08.16"]
[EventType "swiss"]
[EventCountry "BLR"]
[SourceTitle "playchess.com"]
[Source "ChessBase"]
[SourceQuality "1"]
[TimeControl "600+5"]

1. d4 {[%emt 0:00:00]} Nf6 {[%emt 0:00:00]} 2. c4 {[%emt 0:00:00]} c5 {[%emt 0:00:00]} 3. e3 {[%emt 0:00:10]} g6 {[%emt 0:00:02]} 4. Nc3 {[%emt 0:00:04]} Bg7 {[%emt 0:00:11]} 5. d5 {[%emt 0:00:04]} d6 {[%emt 0:00:52]} 6. Nf3 {[%emt 0:00:03]} e6 {[%emt 0:00:07]} 7. e4 {[%emt 0:00:25]} exd5 {[%emt 0:00:17]} 8. exd5 {[%emt 0:00:07]} O-O {[%emt 0:00:04]} 9. Be2 {[%emt 0:00:04]} a6 {[%emt 0:00:24]} 10. O-O {[%emt 0:00:05]} Bg4 {[%emt 0:00:03]} 11. Bf4 {[%emt 0:00:58]} Qc7 {[%emt 0:00:09]} 12. Re1 {[%emt 0:00:09]} Nbd7 {[%emt 0:00:32]} 13. h3 {[%emt 0:00:08]} Bxf3 {[%emt 0:00:03]} 14. Bxf3 {[%emt 0:00:04]} Rfe8 {[%emt 0:00:20]} 15. Qd3 {[%emt 0:00:02]} Rab8 {[%emt 0:00:32]} 16. Qd2 {[%emt 0:01:44]} h5 {[%emt 0:00:36]} 17. g4 {[%emt 0:00:41]} hxg4 {[%emt 0:00:28]} 18. hxg4 {[%emt 0:00:22]} Nh7 {[%emt 0:00:17]} 19. Kg2 {[%emt 0:00:11]} Ne5 {[%emt 0:00:15]} 20. Bxe5 {[%emt 0:01:01]} Bxe5 {[%emt 0:00:06]} 21. Rh1 {[%emt 0:00:02]} Nf8 {[%emt 0:00:38]} 22. Rh3 {[%emt 0:00:22]} Bg7 {[%emt 0:00:42]} 23. Ne4 {[%emt 0:00:12]} Nd7 {[%emt 0:00:36]} 24. Rah1 {[%emt 0:00:11]} Ne5 {[%emt 0:00:15]} 25. Rh8+ {[%emt 0:00:18]} Bxh8 {[%emt 0:00:20]} 26. Rxh8+ {[%emt 0:00:02]} Kxh8 {[%emt 0:00:10]} 27. Qh6+ {[%emt 0:00:01]} 1-0

[Event "3rd FIDE WCCC Rapid G12 2019"]
[Site "Minsk"]
[Date "2019.08.17"]
[Round "9.2"]
[White "Komissarova, Soigina"]
[Black "Mikheeva, Galina"]
[Result "0-1"]
[ECO "C61"]
[WhiteElo "1663"]
[BlackElo "1952"]
[Annotator "NA"]
[PlyCount "84"]
[EventDate "2019.08.16"]
[EventType "swiss"]
[EventCountry "BLR"]
[SourceTitle "playchess.com"]
[Source "ChessBase"]
[SourceQuality "1"]
[TimeControl "600+5"]

1. e4 {[%emt 0:00:00]} e5 {[%emt 0:00:00]} 2. Nf3 {[%emt 0:00:00]} Nc6 {[%emt 0:00:00]} 3. Bb5 {[%emt 0:00:01]} Nd4 {[%emt 0:00:00]} 4. Nxd4 {[%emt 0:00:38]} exd4 {[%emt 0:00:00]} 5. O-O {[%emt 0:00:08]} Bc5 {[%emt 0:00:00]} 6. d3 {[%emt 0:00:06]} c6 {[%emt 0:00:06]} 7. Bc4 {[%emt 0:00:03]} d5 {[%emt 0:00:08]} 8. exd5 {[%emt 0:00:02]} cxd5 {[%emt 0:00:03]} 9. Re1+ {[%emt 0:00:07]} Kf8 {[%emt 0:00:46]} 10. Bb3 {[%emt 0:00:15]} Be6 {[%emt 0:01:39]} 11. Qf3 {[%emt 0:00:05]} Qd7 {[%emt 0:00:33]} 12. h3 {[%emt 0:01:20]} Ne7 {[%emt 0:01:04]} 13. Bg5 {[%emt 0:00:55]} Ng6 {[%emt 0:00:24]} 14. a4 {[%emt 0:01:22]} a5 {[%emt 0:00:27]} 15. c3 {[%emt 0:02:06]} Re8 {[%emt 0:01:39]} 16. Nd2 {[%emt 0:02:02]} f6 {[%emt 0:00:57]} 17. Nf1 {[%emt 0:00:24]} Bf7 {[%emt 0:01:24]} 18. Rxe8+ {[%emt 0:00:07]} Kxe8 {[%emt 0:00:43]} 19. Bd2 b6 {[%emt 0:00:30]} 20. Re1+ {[%emt 0:00:33]} Kd8 {[%emt 0:00:10]} 21. Bc2 {[%emt 0:00:31]} Re8 {[%emt 0:00:33]} 22. b3 {[%emt 0:00:52]} Rxe1 {[%emt 0:00:02]} 23. Bxe1 {[%emt 0:00:00]} Ne5 {[%emt 0:00:24]} 24. Qg3 {[%emt 0:00:01]} Bg6 {[%emt 0:00:12]} 25. b4 {[%emt 0:00:09]} axb4 {[%emt 0:00:03]} 26. cxb4 {[%emt 0:00:01]} Bd6 {[%emt 0:00:05]} 27. Qh4 {[%emt 0:00:05]} Nxd3 {[%emt 0:00:11]} 28. Bxd3 {[%emt 0:00:02]} Bxd3 {[%emt 0:00:02]} 29. Qxd4 {[%emt 0:00:01]} Bxf1 {[%emt 0:00:04]} 30. Kxf1 {[%emt 0:00:08]} Bc7 {[%emt 0:00:04]} 31. b5 {[%emt 0:00:09]} Qe6 {[%emt 0:00:11]} 32. Bc3 {[%emt 0:00:14]} Qe5 {[%emt 0:00:06]} 33. Qd2 {[%emt 0:00:01]} Qe4 {[%emt 0:00:06]} 34. f3 {[%emt 0:00:08]} Qc4+ {[%emt 0:00:03]} 35. Kf2 {[%emt 0:00:01]} Kd7 {[%emt 0:00:05]} 36. Bb4 {[%emt 0:00:05]} Bd6 {[%emt 0:00:04]} 37. Bxd6 {[%emt 0:00:03]} Kxd6 {[%emt 0:00:02]} 38. Qd1 {[%emt 0:00:03]} Kc5 {[%emt 0:00:02]} 39. Ke3 {[%emt 0:00:16]} Qc3+ {[%emt 0:00:01]} 40. Kf4 {[%emt 0:00:05]} Qe5+ {[%emt 0:00:02]} 41. Kg4 {[%emt 0:00:07]} h5+ {[%emt 0:00:04]} 42. Kh4 {[%emt 0:00:02]} Qg5# {[%emt 0:00:02]} 0-1

[Event "3rd FIDE WCCC Rapid G12 2019"]
[Site "Minsk"]
[Date "2019.08.17"]
[Round "9.3"]
[White "Lomakina, Anzhelika"]
[Black "Kaldarova, Ayaulym"]
[Result "1/2-1/2"]
[ECO "C00"]
[WhiteElo "1732"]
[BlackElo "1549"]
[Annotator "NA"]
[PlyCount "95"]
[EventDate "2019.08.16"]
[EventType "swiss"]
[EventCountry "BLR"]
[SourceTitle "playchess.com"]
[Source "ChessBase"]
[SourceQuality "1"]
[TimeControl "600+5"]

1. e4 {[%emt 0:00:00]} e6 {[%emt 0:00:00]} 2. d4 {[%emt 0:00:00]} d5 {[%emt 0:00:00]} 3. Bd3 {[%emt 0:00:00]} c5 {[%emt 0:00:00]} 4. exd5 exd5 {[%emt 0:00:00]} 5. Nf3 {[%emt 0:00:04]} Nc6 {[%emt 0:00:02]} 6. O-O {[%emt 0:00:03]} cxd4 {[%emt 0:00:01]} 7. Nbd2 {[%emt 0:00:27]} Be7 {[%emt 0:00:11]} 8. Nb3 {[%emt 0:00:07]} Nf6 {[%emt 0:00:19]} 9. Nbxd4 {[%emt 0:00:10]} O-O {[%emt 0:00:07]} 10. c3 {[%emt 0:00:07]} Bg4 {[%emt 0:00:06]} 11. Nxc6 {[%emt 0:01:10]} bxc6 {[%emt 0:00:02]} 12. Bc2 {[%emt 0:00:02]} Qc7 {[%emt 0:00:12]} 13. Bg5 {[%emt 0:00:36]} h6 {[%emt 0:00:10]} 14. Bh4 {[%emt 0:00:09]} Rfe8 {[%emt 0:01:00]} 15. Qd3 {[%emt 0:00:50]} Ne4 {[%emt 0:00:19]} 16. Bg3 {[%emt 0:01:06]} Bd6 {[%emt 0:00:03]} 17. Nd4 {[%emt 0:00:53]} Bh5 {[%emt 0:01:06]} 18. Ba4 {[%emt 0:03:10]} Nc5 {[%emt 0:01:16]} 19. Qc2 {[%emt 0:00:43]} Nxa4 {[%emt 0:00:07]} 20. Qxa4 {[%emt 0:00:01]} Bxg3 {[%emt 0:00:18]} 21. hxg3 {[%emt 0:00:33]} c5 {[%emt 0:00:04]} 22. Nf5 {[%emt 0:00:11]} Re2 {[%emt 0:00:21]} 23. Ne3 {[%emt 0:00:37]} Rxb2 {[%emt 0:00:17]} 24. Nxd5 {[%emt 0:00:03]} Qe5 {[%emt 0:00:13]} 25. c4 Qd4 {[%emt 0:00:43]} 26. Qc6 {[%emt 0:00:59]} Rab8 {[%emt 0:00:20]} 27. Rac1 {[%emt 0:00:05]} Be2 {[%emt 0:00:30]} 28. Rfe1 {[%emt 0:00:06]} Bxc4 {[%emt 0:00:06]} 29. Ne3 {[%emt 0:00:05]} Be6 {[%emt 0:02:00]} 30. Red1 {[%emt 0:00:01]} Qb4 {[%emt 0:00:22]} 31. a4 {[%emt 0:00:07]} Rc8 {[%emt 0:00:35]} 32. Qa6 {[%emt 0:00:05]} Ra2 {[%emt 0:00:16]} 33. Qd3 {[%emt 0:00:08]} Qxa4 {[%emt 0:00:09]} 34. Qd6 {[%emt 0:00:05]} Qc6 {[%emt 0:00:18]} 35. Qe5 {[%emt 0:00:03]} Qc7 {[%emt 0:00:18]} 36. Qc3 {[%emt 0:00:04]} a5 {[%emt 0:00:04]} 37. Ra1 {[%emt 0:00:06]} Rxa1 {[%emt 0:00:02]} 38. Rxa1 {[%emt 0:00:01]} Ra8 {[%emt 0:00:12]} 39. Ra4 {[%emt 0:00:10]} Qd6 {[%emt 0:00:19]} 40. Rxa5 {[%emt 0:00:05]} Rxa5 {[%emt 0:00:07]} 41. Qxa5 {[%emt 0:00:01]} c4 {[%emt 0:00:07]} 42. Qa8+ {[%emt 0:00:01]} Kh7 {[%emt 0:00:01]} 43. Qe4+ {[%emt 0:00:01]} g6 {[%emt 0:00:36]} 44. Nxc4 {[%emt 0:00:13]} Qd1+ {[%emt 0:00:07]} 45. Kh2 {[%emt 0:00:01]} Qh5+ {[%emt 0:00:01]} 46. Kg1 {[%emt 0:00:01]} Qd1+ {[%emt 0:00:08]} 47. Kh2 {[%emt 0:00:01]} Qh5+ {[%emt 0:00:07]} 48. Kg1 {[%emt 0:00:01]} 1/2-1/2

[Event "3rd FIDE WCCC Rapid G12 2019"]
[Site "Minsk"]
[Date "2019.08.17"]
[Round "9.4"]
[White "Babic, Masa"]
[Black "Babic, Milana"]
[Result "1-0"]
[ECO "C47"]
[WhiteElo "1719"]
[BlackElo "1689"]
[Annotator "NA"]
[PlyCount "109"]
[EventDate "2019.08.16"]
[EventType "swiss"]
[EventCountry "BLR"]
[SourceTitle "playchess.com"]
[Source "ChessBase"]
[SourceQuality "1"]
[TimeControl "600+5"]

1. e4 {[%emt 0:00:00]} e5 {[%emt 0:00:00]} 2. Nf3 {[%emt 0:00:00]} Nc6 {[%emt 0:00:00]} 3. Nc3 {[%emt 0:00:00]} Nf6 {[%emt 0:00:00]} 4. Be2 {[%emt 0:00:00]} Bb4 {[%emt 0:00:00]} 5. O-O {[%emt 0:00:04]} O-O {[%emt 0:00:00]} 6. a3 {[%emt 0:00:02]} Bc5 {[%emt 0:00:02]} 7. b4 {[%emt 0:00:06]} Bb6 {[%emt 0:00:01]} 8. b5 {[%emt 0:00:02]} Nd4 {[%emt 0:00:06]} 9. Nxe5 {[%emt 0:00:03]} Nxe2+ {[%emt 0:00:02]} 10. Qxe2 {[%emt 0:00:04]} c6 {[%emt 0:00:02]} 11. bxc6 {[%emt 0:00:04]} dxc6 {[%emt 0:00:01]} 12. Nc4 {[%emt 0:00:04]} Re8 {[%emt 0:00:06]} 13. Nxb6 {[%emt 0:00:03]} axb6 {[%emt 0:00:06]} 14. d3 {[%emt 0:00:03]} Bd7 {[%emt 0:00:04]} 15. Bg5 {[%emt 0:00:02]} h6 {[%emt 0:00:05]} 16. Bh4 {[%emt 0:00:04]} g5 {[%emt 0:00:14]} 17. Bg3 {[%emt 0:00:02]} Qe7 {[%emt 0:00:04]} 18. f4 {[%emt 0:00:03]} gxf4 {[%emt 0:00:13]} 19. Rxf4 {[%emt 0:00:06]} Bg4 {[%emt 0:00:01]} 20. Rxg4+ {[%emt 0:00:03]} Nxg4 {[%emt 0:00:01]} 21. Qxg4+ {[%emt 0:00:02]} Kh8 {[%emt 0:00:01]} 22. Qh4 {[%emt 0:00:13]} Qxh4 {[%emt 0:00:14]} 23. Bxh4 {[%emt 0:00:02]} Kg7 {[%emt 0:00:01]} 24. a4 {[%emt 0:00:05]} c5 {[%emt 0:00:04]} 25. Nd5 {[%emt 0:00:11]} Ra6 {[%emt 0:00:05]} 26. Nc7 {[%emt 0:00:09]} Rea8 {[%emt 0:00:03]} 27. Nxa6 {[%emt 0:00:03]} bxa6 {[%emt 0:00:01]} 28. Rb1 {[%emt 0:00:02]} Rb8 {[%emt 0:00:01]} 29. c4 {[%emt 0:00:01]} a5 {[%emt 0:00:02]} 30. Bg3 Rb7 31. Be5+ {[%emt 0:00:06]} f6 {[%emt 0:00:02]} 32. Bd6 {[%emt 0:00:02]} Rd7 {[%emt 0:00:00]} 33. Rxb6 {[%emt 0:00:02]} Kg6 {[%emt 0:00:01]} 34. e5 {[%emt 0:00:05]} fxe5 {[%emt 0:00:04]} 35. Bxe5+ {[%emt 0:00:04]} Kf5 {[%emt 0:00:00]} 36. Bd6 {[%emt 0:00:02]} h5 {[%emt 0:00:06]} 37. g3 {[%emt 0:00:35]} h4 {[%emt 0:00:09]} 38. Bxc5 {[%emt 0:00:09]} Rxd3 {[%emt 0:00:04]} 39. Bf2 {[%emt 0:00:08]} hxg3 40. hxg3 {[%emt 0:00:00]} Rc3 {[%emt 0:00:05]} 41. c5 {[%emt 0:00:00]} Rc4 {[%emt 0:00:04]} 42. c6 {[%emt 0:00:03]} Rxa4 {[%emt 0:00:03]} 43. Rb5+ {[%emt 0:00:05]} Ke6 {[%emt 0:00:01]} 44. c7 {[%emt 0:00:09]} Kd7 {[%emt 0:00:02]} 45. Bb6 {[%emt 0:00:04]} Ra1+ {[%emt 0:00:03]} 46. Kg2 {[%emt 0:00:01]} Ra2+ {[%emt 0:00:02]} 47. Kf3 {[%emt 0:00:02]} Ra3+ {[%emt 0:00:02]} 48. Kg4 {[%emt 0:00:01]} Ra4+ {[%emt 0:00:01]} 49. Kh3 {[%emt 0:00:02]} Rc4 {[%emt 0:00:01]} 50. Bxa5 {[%emt 0:00:04]} Rc6 {[%emt 0:00:02]} 51. g4 {[%emt 0:00:03]} Kc8 {[%emt 0:00:03]} 52. Rb8+ {[%emt 0:01:47]} Kd7 {[%emt 0:00:02]} 53. Rd8+ {[%emt 0:00:02]} Ke7 {[%emt 0:00:02]} 54. c8=Q {[%emt 0:00:07]} Rxc8 {[%emt 0:00:02]} 55. Rxc8 1-0